Workbook

Sheet Stavba
C2: Položkový rozpočet stavby | H2: Datum:
C5: Stavba : | D5: 3381 | E5: Turnov-Opravy místních komunikací a chodníků 2024
C7: Objednatel : | D7: Město TURNOV | H7: IČO : | I7: 00276227
D8: Antonína Dvořáka 335 | H8: DIČ : | I8: CZ00276227
C9: 51122 | D9: Turnov
C11: Zhotovitel : | D11: . | H11: IČO :
H12: DIČ :
C14: Za zhotovitele : | H14: Za objednatele :
C16: _______________ | H16: _______________
J18: Rozpočtové náklady
B19: Základ pro DPH | D19: 12 | E19: % | I19: =ROUND(G35,0) -> 0
B20: DPH | D20: =SazbaDPH1 -> 12 | E20: % | I20: =ROUND(I19*D20/100,0) -> 0
B21: Základ pro DPH | D21: 21 | E21: % | I21: =ROUND(H35,0) -> 0
B22: DPH | D22: =SazbaDPH2 -> 21 | E22: % | I22: =ROUND(I21*D21/100,0) -> 0
B23: Cena celkem za stavbu | I23: =SUM(I19:I22) -> 0
B26: Rekapitulace stavebních objektů a provozních souborů
B28: Číslo a název objektu / provozního souboru | F28: Cena celkem | G28: =CONCATENATE("Základ DPH ",SazbaDPH1," %") -> Základ DPH 12 % | H28: =CONCATENATE("Základ DPH ",SazbaDPH2," %") -> Základ DPH 21 % | I28: DPH celkem | J28: %
B30: 03 | C30: Oprava chodníku u ZŠ Žižkova | F30: =G30+H30+I30 -> 0 | G30: 0 | H30: =SUM(H41:H42) -> 0 | I30: =(G30*SazbaDPH1)/100+(H30*SazbaDPH2)/100 -> 0 | J30: =IF(CelkemObjekty=0,"",F30/CelkemObjekty*100) -> 
B35: Celkem za stavbu | F35: =SUM(F29:F34) -> 0 | G35: =SUM(G29:G34) -> 0 | H35: =SUM(H29:H34) -> 0 | I35: =SUM(I29:I34) -> 0 | J35: =IF(CelkemObjekty=0,"",F35/CelkemObjekty*100) -> 
B37: Rekapitulace stavebních rozpočtů
B39: Číslo objektu | C39: Číslo a název rozpočtu | F39: Cena celkem | G39: =CONCATENATE("Základ DPH ",SazbaDPH1," %") -> Základ DPH 12 % | H39: =CONCATENATE("Základ DPH ",SazbaDPH2," %") -> Základ DPH 21 % | I39: DPH celkem | J39: %
B41: 03 | C41: 3381/03.1 Oprava chodníku u ZŠ Žižkova | F41: =G41+H41+I41 -> 0 | G41: 0 | H41: =SUM('03 338103.1 KL'!C23) -> 0 | I41: =(G41*SazbaDPH1)/100+(H41*SazbaDPH2)/100 -> 0 | J41: =IF(CelkemObjekty=0,"",F41/CelkemObjekty*100) -> 
B42: 03 | C42: 3381/03.2 Chodník u bytovek a ZP pro kontejnery | F42: 0 | G42: 0 | H42: =SUM('03 338103.2 KL'!C23) -> 0 | I42: 0
B47: Celkem za stavbu | F47: =SUM(F40:F46) -> 0 | G47: =SUM(G40:G46) -> 0 | H47: =SUM(H40:H46) -> 0 | I47: =SUM(I40:I46) -> 0 | J47: =IF(CelkemObjekty=0,"",F47/CelkemObjekty*100) -> 

Sheet 03 338103.1 KL
A1: POLOŽKOVÝ ROZPOČET
A2: Rozpočet | C2: 3381/03.1 | D2: Oprava chodníku u ZŠ Žižkova | F2: JKSO | G2: 822.27
A4: Objekt | F4: SKP
A5: 03 | C5: Oprava chodníku u ZŠ Žižkova | F5: Měrná jednotka | G5: m2
A6: Stavba | F6: Počet jednotek | G6: 0
A7: 3381 | C7: Turnov-Opravy místních komunikací a chodníků 2024 | F7: Náklady na m.j. | G7: =IF(G6=0,,ROUND((F30+F32)/G6,1)) -> 0
A8: Projektant | F8: Typ rozpočtu
A9: Zpracovatel projektu
A10: Objednatel | C10: Město TURNOV
A11: Dodavatel | C11: . | F11: Zakázkové číslo
A12: Rozpočtoval | F12: Počet listů
A13: ROZPOČTOVÉ NÁKLADY
A14: Základní rozpočtové náklady | D14: Ostatní rozpočtové náklady
B15: HSV celkem | C15: ='03 338103.1 Rek'!E12 -> 0 | D15: ='03 338103.1 Rek'!A17 -> Zařízení staveniště | G15: ='03 338103.1 Rek'!I17 -> 0
A16: Z | B16: PSV celkem | C16: ='03 338103.1 Rek'!F12 -> 0 | D16: ='03 338103.1 Rek'!A18 -> Kompletační činnost (IČD) | G16: ='03 338103.1 Rek'!I18 -> 0
A17: R | B17: M práce celkem | C17: ='03 338103.1 Rek'!H12 -> 0 | D17: ='03 338103.1 Rek'!A19 -> Vytýčení stavby a podz. inženýrských sítí | G17: ='03 338103.1 Rek'!I19 -> 0
A18: N | B18: M dodávky celkem | C18: ='03 338103.1 Rek'!G12 -> 0 | D18: ='03 338103.1 Rek'!A20 -> Dokumentace skutečného provedení | G18: ='03 338103.1 Rek'!I20 -> 0
A19: ZRN celkem | C19: =SUM(C15:C18) -> 0 | D19: ='03 338103.1 Rek'!A21 -> Geodetické zaměření stavby | G19: ='03 338103.1 Rek'!I21 -> 0
D20: ='03 338103.1 Rek'!A22 -> DIO | G20: ='03 338103.1 Rek'!I22 -> 0
A21: HZS | C21: ='03 338103.1 Rek'!I12 -> 0
A22: ZRN+HZS | C22: =C19+C21 -> 0
A23: ZRN+ost.náklady+HZS | C23: =C22+G23 -> 0 | D23: Ostatní náklady celkem | G23: ='03 338103.1 Rek'!H23 -> 0
A24: Vypracoval | D24: Za zhotovitele | F24: Za objednatele
A25: Jméno : | D25: Jméno : | F25: Jméno :
A26: Datum : | D26: Datum : | F26: Datum :
A28: Podpis : | D28: Podpis: | F28: Podpis:
A30: Základ pro DPH | C30: 21 | D30: % | F30: =C23-F32 -> 0
A31: DPH | C31: =C30 -> 21 | D31: % | F31: =ROUND(PRODUCT(F30,C31/100),0) -> 0
A32: Základ pro DPH | C32: 0 | D32: % | F32: 0
A33: DPH | C33: =C32 -> 0 | D33: % | F33: =ROUND(PRODUCT(F32,C33/100),0) -> 0
A34: CENA ZA OBJEKT CELKEM | F34: =ROUND(SUM(F30:F33),0) -> 0
A36: Poznámka :

Sheet 03 338103.1 Rek
A1: Stavba : | C1: 3381 Turnov-Opravy místních komunikací a chodníků 2024 | G1: Rozpočet : | H1: 3381/03.1
A2: Objekt : | C2: 03 Oprava chodníku u ZŠ Žižkova | G2: Oprava chodníku u ZŠ Žižkova
A4: REKAPITULACE STAVEBNÍCH DÍLŮ
B6: Stavební díl | E6: HSV | F6: PSV | G6: Dodávka | H6: Montáž | I6: HZS
A7: ='03 338103.1 Pol'!B7 -> 1 | B7: ='03 338103.1 Pol'!C7 -> Zemní práce | E7: ='03 338103.1 Pol'!BA29 -> 0 | F7: ='03 338103.1 Pol'!BB29 -> 0 | G7: ='03 338103.1 Pol'!BC29 -> 0 | H7: ='03 338103.1 Pol'!BD29 -> 0 | I7: ='03 338103.1 Pol'!BE29 -> 0
A8: ='03 338103.1 Pol'!B30 -> 5 | B8: ='03 338103.1 Pol'!C30 -> Komunikace | E8: ='03 338103.1 Pol'!BA60 -> 0 | F8: ='03 338103.1 Pol'!BB60 -> 0 | G8: ='03 338103.1 Pol'!BC60 -> 0 | H8: ='03 338103.1 Pol'!BD60 -> 0 | I8: ='03 338103.1 Pol'!BE60 -> 0
A9: ='03 338103.1 Pol'!B61 -> 91 | B9: ='03 338103.1 Pol'!C61 -> Doplňující práce na komunikaci | E9: ='03 338103.1 Pol'!BA71 -> 0 | F9: ='03 338103.1 Pol'!BB71 -> 0 | G9: ='03 338103.1 Pol'!BC71 -> 0 | H9: ='03 338103.1 Pol'!BD71 -> 0 | I9: ='03 338103.1 Pol'!BE71 -> 0
A10: ='03 338103.1 Pol'!B72 -> 97 | B10: ='03 338103.1 Pol'!C72 -> Prorážení otvorů | E10: ='03 338103.1 Pol'!BA75 -> 0 | F10: ='03 338103.1 Pol'!BB75 -> 0 | G10: ='03 338103.1 Pol'!BC75 -> 0 | H10: ='03 338103.1 Pol'!BD75 -> 0 | I10: ='03 338103.1 Pol'!BE75 -> 0
A11: ='03 338103.1 Pol'!B76 -> 99 | B11: ='03 338103.1 Pol'!C76 -> Staveništní přesun hmot | E11: ='03 338103.1 Pol'!BA78 -> 0 | F11: ='03 338103.1 Pol'!BB78 -> 0 | G11: ='03 338103.1 Pol'!BC78 -> 0 | H11: ='03 338103.1 Pol'!BD78 -> 0 | I11: ='03 338103.1 Pol'!BE78 -> 0
B12: CELKEM OBJEKT | E12: =SUM(E7:E11) -> 0 | F12: =SUM(F7:F11) -> 0 | G12: =SUM(G7:G11) -> 0 | H12: =SUM(H7:H11) -> 0 | I12: =SUM(I7:I11) -> 0
A14: VEDLEJŠÍ ROZPOČTOVÉ NÁKLADY
A16: Název VRN | E16: Kč | I16: Kč
A17: Zařízení staveniště | E17: 0 | I17: =E17+F17*G17/100 -> 0 | BA17: 2
A18: Kompletační činnost (IČD) | E18: 0 | I18: 0 | BA18: 2
A19: Vytýčení stavby a podz. inženýrských sítí | E19: 0 | I19: 0 | BA19: 0
A20: Dokumentace skutečného provedení | E20: 0 | I20: 0 | BA20: 0
A21: Geodetické zaměření stavby | E21: 0 | I21: 0 | BA21: 0
A22: DIO | E22: 0 | I22: 0 | BA22: 0
B23: CELKEM VRN | H23: =SUM(I17:I22) -> 0

Sheet 03 338103.1 Pol
A1: Položkový rozpočet
A3: Stavba : | C3: 3381 Turnov-Opravy místních komunikací a chodníků 2024 | E3: Rozpočet: | F3: ='03 338103.1 Rek'!H1 -> 3381/03.1
A4: Objekt : | C4: 03 Oprava chodníku u ZŠ Žižkova | E4: ='03 338103.1 Rek'!G2 -> Oprava chodníku u ZŠ Žižkova
A6: P.č. | B6: Číslo položky | C6: Název položky | D6: MJ | E6: množství | F6: cena / MJ | G6: celkem (Kč) | H6: Jednotková hmotnost | I6: Celková hmotnost | J6: Jednotková dem.hmot. | K6: Celková dem.hmot.
A7: Díl: | B7: 1 | C7: Zemní práce | O7: 1
A8: 1 | B8: 113106231R00 | C8: Rozebrání dlažeb ze zámkové dlažby v kamenivu | D8: m2 | E8: 349 | G8: =E8*F8 -> 0 | H8: 0 | I8: =E8*H8 -> 0 | J8: -0.225 | K8: =E8*J8 -> -78.525 | O8: 2 | AA8: 1 | AB8: 1 | AC8: 1 | AZ8: 1 | BA8: =IF(AZ8=1,G8,0) -> 0 | BB8: =IF(AZ8=2,G8,0) -> 0 | BC8: =IF(AZ8=3,G8,0) -> 0 | BD8: =IF(AZ8=4,G8,0) -> 0 | BE8: =IF(AZ8=5,G8,0) -> 0 | CA8: 1 | CB8: 1
C9: Stávající dlažba: | E9: 0 | M9: Stávající dlažba:
C10: Chodník:205,00 | E10: 205 | M10: Chodník:205,00
C11: Plocha mezi schodištěm a budovou ZŠ:144,00 | E11: 144 | M11: Plocha mezi schodištěm a budovou ZŠ:144,00
A12: 2 | B12: 113108315R00 | C12: Odstranění asfaltové vrstvy pl. do 50 m2, tl.15 cm | D12: m2 | E12: 17.7 | G12: =E12*F12 -> 0 | H12: 0 | I12: =E12*H12 -> 0 | J12: -0.33 | K12: =E12*J12 -> -5.841 | O12: 2 | AA12: 1 | AB12: 1 | AC12: 1 | AZ12: 1 | BA12: =IF(AZ12=1,G12,0) -> 0 | BB12: =IF(AZ12=2,G12,0) -> 0 | BC12: =IF(AZ12=3,G12,0) -> 0 | BD12: =IF(AZ12=4,G12,0) -> 0 | BE12: =IF(AZ12=5,G12,0) -> 0 | CA12: 1 | CB12: 1
C13: Podél stávajících kamenných obrubníků:(24,00+35,00)*0,30 | E13: 17.7 | M13: Podél stávajících kamenných obrubníků:(24,00+35,00)*0,30
A14: 3 | B14: 113201111R00 | C14: Vytrhání obrubníků chodníkových a parkových | D14: m | E14: 59 | G14: =E14*F14 -> 0 | H14: 0 | I14: =E14*H14 -> 0 | J14: -0.22 | K14: =E14*J14 -> -12.98 | O14: 2 | AA14: 1 | AB14: 1 | AC14: 1 | AZ14: 1 | BA14: =IF(AZ14=1,G14,0) -> 0 | BB14: =IF(AZ14=2,G14,0) -> 0 | BC14: =IF(AZ14=3,G14,0) -> 0 | BD14: =IF(AZ14=4,G14,0) -> 0 | BE14: =IF(AZ14=5,G14,0) -> 0 | CA14: 1 | CB14: 1
C15: Stávající kamenné obruby pro opětovné použití:24,00+35,00 | E15: 59 | M15: Stávající kamenné obruby pro opětovné použití:24,00+35,00
A16: 4 | B16: 113204111R00 | C16: Vytrhání obrubníků zahradních | D16: m | E16: 57 | G16: =E16*F16 -> 0 | H16: 0 | I16: =E16*H16 -> 0 | J16: -0.125 | K16: =E16*J16 -> -7.125 | O16: 2 | AA16: 1 | AB16: 1 | AC16: 1 | AZ16: 1 | BA16: =IF(AZ16=1,G16,0) -> 0 | BB16: =IF(AZ16=2,G16,0) -> 0 | BC16: =IF(AZ16=3,G16,0) -> 0 | BD16: =IF(AZ16=4,G16,0) -> 0 | BE16: =IF(AZ16=5,G16,0) -> 0 | CA16: 1 | CB16: 1
C17: Stávající zahradní obruby podél zelené plochy:24,00+33,00 | E17: 57 | M17: Stávající zahradní obruby podél zelené plochy:24,00+33,00
A18: 5 | B18: 181101102R00 | C18: Úprava pláně v zářezech v hor. 1-4, se zhutněním | D18: m2 | E18: 349 | G18: =E18*F18 -> 0 | H18: 0 | I18: =E18*H18 -> 0 | J18: 0 | K18: =E18*J18 -> 0 | O18: 2 | AA18: 1 | AB18: 1 | AC18: 1 | AZ18: 1 | BA18: =IF(AZ18=1,G18,0) -> 0 | BB18: =IF(AZ18=2,G18,0) -> 0 | BC18: =IF(AZ18=3,G18,0) -> 0 | BD18: =IF(AZ18=4,G18,0) -> 0 | BE18: =IF(AZ18=5,G18,0) -> 0 | CA18: 1 | CB18: 1
C19: Doplnění plochy po odstranění původní dlažby a obrubníků: | E19: 0 | M19: Doplnění plochy po odstranění původní dlažby a obrubníků:
C20: Chodník:205,00 | E20: 205 | M20: Chodník:205,00
C21: Plocha mezi schodištěm a budovou ZŠ:144,00 | E21: 144 | M21: Plocha mezi schodištěm a budovou ZŠ:144,00
A22: 6 | B22: 181300012RAC | C22: Rozprostření ornice v rovině tloušťka 20 cm dovoz ornice ze vzdálenosti 5 km, osetí trávou | D22: m2 | E22: 28.5 | G22: =E22*F22 -> 0 | H22: 3e-05 | I22: =E22*H22 -> 0.000855 | J22: 0 | K22: =E22*J22 -> 0 | O22: 2 | AA22: 1 | AB22: 1 | AC22: 1 | AZ22: 1 | BA22: =IF(AZ22=1,G22,0) -> 0 | BB22: =IF(AZ22=2,G22,0) -> 0 | BC22: =IF(AZ22=3,G22,0) -> 0 | BD22: =IF(AZ22=4,G22,0) -> 0 | BE22: =IF(AZ22=5,G22,0) -> 0 | CA22: 1 | CB22: 1
C23: Včetně přesunu hmot. | L23: Včetně přesunu hmot. | O23: 3
C24: Doplnění ornice podél nových zahradních obrubníků:(24,00+33,00)*0,50 | E24: 28.5 | M24: Doplnění ornice podél nových zahradních obrubníků:(24,00+33,00)*0,50
A25: 7 | B25: 979082113RSZ | C25: Vodorovná doprava suti po suchu na skládku zhotovitele | D25: t | E25: 104.471 | G25: =E25*F25 -> 0 | H25: 0 | I25: =E25*H25 -> 0 | J25: 0 | K25: =E25*J25 -> 0 | O25: 2 | AA25: 1 | AB25: 1 | AC25: 1 | AZ25: 1 | BA25: =IF(AZ25=1,G25,0) -> 0 | BB25: =IF(AZ25=2,G25,0) -> 0 | BC25: =IF(AZ25=3,G25,0) -> 0 | BD25: =IF(AZ25=4,G25,0) -> 0 | BE25: =IF(AZ25=5,G25,0) -> 0 | CA25: 1 | CB25: 1
A26: 8 | B26: 979990103R00 | C26: Poplatek za skládku stavební suti beton, skupina odpadu 170101 | D26: t | E26: 98.63 | G26: =E26*F26 -> 0 | H26: 0 | I26: =E26*H26 -> 0 | J26: 0 | K26: =E26*J26 -> 0 | O26: 2 | AA26: 1 | AB26: 1 | AC26: 1 | AZ26: 1 | BA26: =IF(AZ26=1,G26,0) -> 0 | BB26: =IF(AZ26=2,G26,0) -> 0 | BC26: =IF(AZ26=3,G26,0) -> 0 | BD26: =IF(AZ26=4,G26,0) -> 0 | BE26: =IF(AZ26=5,G26,0) -> 0 | CA26: 1 | CB26: 1
A27: 9 | B27: 979999995R00 | C27: Poplatek za reciklaci asfaltu, kusovost do 1600cm2 skupina 170302 | D27: t | E27: 5.841 | G27: =E27*F27 -> 0 | H27: 0 | I27: =E27*H27 -> 0 | J27: 0 | K27: =E27*J27 -> 0 | O27: 2 | AA27: 1 | AB27: 1 | AC27: 1 | AZ27: 1 | BA27: =IF(AZ27=1,G27,0) -> 0 | BB27: =IF(AZ27=2,G27,0) -> 0 | BC27: =IF(AZ27=3,G27,0) -> 0 | BD27: =IF(AZ27=4,G27,0) -> 0 | BE27: =IF(AZ27=5,G27,0) -> 0 | CA27: 1 | CB27: 1
C28: Položka je určena pro suť o velikosti kusu do 30x30 cm (technologický materiál určený k recyklaci). | L28: Položka je určena pro suť o velikosti kusu do 30x30 cm (technologický materiál určený k recyklaci). | O28: 3
B29: Celkem za | C29: 1 Zemní práce | G29: =SUM(G7:G28) -> 0 | I29: =SUM(I7:I28) -> 0.000855 | K29: =SUM(K7:K28) -> -104.471 | O29: 4 | BA29: =SUM(BA7:BA28) -> 0 | BB29: =SUM(BB7:BB28) -> 0 | BC29: =SUM(BC7:BC28) -> 0 | BD29: =SUM(BD7:BD28) -> 0 | BE29: =SUM(BE7:BE28) -> 0
A30: Díl: | B30: 5 | C30: Komunikace | O30: 1
A31: 10 | B31: 566301111R00 | C31: Úprava krytu kamenivem drceným do 0,06 m3/m2 | D31: m2 | E31: 349 | G31: =E31*F31 -> 0 | H31: 0.09848 | I31: =E31*H31 -> 34.36952 | J31: 0 | K31: =E31*J31 -> 0 | O31: 2 | AA31: 1 | AB31: 1 | AC31: 1 | AZ31: 1 | BA31: =IF(AZ31=1,G31,0) -> 0 | BB31: =IF(AZ31=2,G31,0) -> 0 | BC31: =IF(AZ31=3,G31,0) -> 0 | BD31: =IF(AZ31=4,G31,0) -> 0 | BE31: =IF(AZ31=5,G31,0) -> 0 | CA31: 1 | CB31: 1
C32: Doplnění plochy po odstranění původní dlažby a obrubníků: | E32: 0 | M32: Doplnění plochy po odstranění původní dlažby a obrubníků:
C33: Chodník:205,00 | E33: 205 | M33: Chodník:205,00
C34: Plocha mezi schodištěm a budovou ZŠ:144,00 | E34: 144 | M34: Plocha mezi schodištěm a budovou ZŠ:144,00
A35: 11 | B35: 566904111RRX | C35: Vyspravení podkladu po překopech ACP 16+ Ručně | D35: t | E35: 4.8675 | G35: =E35*F35 -> 0 | H35: 1 | I35: =E35*H35 -> 4.8675 | J35: 0 | K35: =E35*J35 -> 0 | O35: 2 | AA35: 1 | AB35: 1 | AC35: 1 | AZ35: 1 | BA35: =IF(AZ35=1,G35,0) -> 0 | BB35: =IF(AZ35=2,G35,0) -> 0 | BC35: =IF(AZ35=3,G35,0) -> 0 | BD35: =IF(AZ35=4,G35,0) -> 0 | BE35: =IF(AZ35=5,G35,0) -> 0 | CA35: 1 | CB35: 1
C36: Podél nově osazených kamenných obrubníků:(24,00+35,00)*0,30*0,10*2,50*1,1 | E36: 4.8675 | M36: Podél nově osazených kamenných obrubníků:(24,00+35,00)*0,30*0,10*2,50*1,1
A37: 12 | B37: 572952111RRX | C37: Vyspravení krytu asf.betonem tl.do 5 cm ACO11+ Ručně | D37: m2 | E37: 17.7 | G37: =E37*F37 -> 0 | H37: 0.10255 | I37: =E37*H37 -> 1.815135 | J37: 0 | K37: =E37*J37 -> 0 | O37: 2 | AA37: 1 | AB37: 1 | AC37: 1 | AZ37: 1 | BA37: =IF(AZ37=1,G37,0) -> 0 | BB37: =IF(AZ37=2,G37,0) -> 0 | BC37: =IF(AZ37=3,G37,0) -> 0 | BD37: =IF(AZ37=4,G37,0) -> 0 | BE37: =IF(AZ37=5,G37,0) -> 0 | CA37: 1 | CB37: 1
C38: Podél nově osazených kamenných obrubníků:(24,00+35,00)*0,30 | E38: 17.7 | M38: Podél nově osazených kamenných obrubníků:(24,00+35,00)*0,30
A39: 13 | B39: 573231125R00 | C39: Postřik spojovací z KAE množství zbytkového asfaltu 0,5 kg/m2 | D39: m2 | E39: 17.7 | G39: =E39*F39 -> 0 | H39: 0.0005 | I39: =E39*H39 -> 0.00885 | J39: 0 | K39: =E39*J39 -> 0 | O39: 2 | AA39: 1 | AB39: 1 | AC39: 1 | AZ39: 1 | BA39: =IF(AZ39=1,G39,0) -> 0 | BB39: =IF(AZ39=2,G39,0) -> 0 | BC39: =IF(AZ39=3,G39,0) -> 0 | BD39: =IF(AZ39=4,G39,0) -> 0 | BE39: =IF(AZ39=5,G39,0) -> 0 | CA39: 1 | CB39: 1
C40: Podél nově osazených kamenných obrubníků:(24,00+35,00)*0,30 | E40: 17.7 | M40: Podél nově osazených kamenných obrubníků:(24,00+35,00)*0,30
A41: 14 | B41: 596215021R00 | C41: Kladení zámkové dlažby tl. 6 cm do drtě tl. 4 cm | D41: m2 | E41: 349 | G41: =E41*F41 -> 0 | H41: 0.0739 | I41: =E41*H41 -> 25.7911 | J41: 0 | K41: =E41*J41 -> 0 | O41: 2 | AA41: 1 | AB41: 1 | AC41: 1 | AZ41: 1 | BA41: =IF(AZ41=1,G41,0) -> 0 | BB41: =IF(AZ41=2,G41,0) -> 0 | BC41: =IF(AZ41=3,G41,0) -> 0 | BD41: =IF(AZ41=4,G41,0) -> 0 | BE41: =IF(AZ41=5,G41,0) -> 0 | CA41: 1 | CB41: 1
C42: Doplnění plochy po odstranění původní dlažby a obrubníků: | E42: 0 | M42: Doplnění plochy po odstranění původní dlažby a obrubníků:
C43: Chodník:205,00 | E43: 205 | M43: Chodník:205,00
C44: Plocha mezi schodištěm a budovou ZŠ:144,00 | E44: 144 | M44: Plocha mezi schodištěm a budovou ZŠ:144,00
A45: 15 | B45: 596291111R00 | C45: Řezání zámkové dlažby tl. 60 mm | D45: m | E45: 94.45 | G45: =E45*F45 -> 0 | H45: 0.00033 | I45: =E45*H45 -> 0.0311685 | J45: 0 | K45: =E45*J45 -> 0 | O45: 2 | AA45: 1 | AB45: 1 | AC45: 1 | AZ45: 1 | BA45: =IF(AZ45=1,G45,0) -> 0 | BB45: =IF(AZ45=2,G45,0) -> 0 | BC45: =IF(AZ45=3,G45,0) -> 0 | BD45: =IF(AZ45=4,G45,0) -> 0 | BE45: =IF(AZ45=5,G45,0) -> 0 | CA45: 1 | CB45: 1
C46: Doplnění plochy po odstranění původní dlažby a obrubníků: | E46: 0 | M46: Doplnění plochy po odstranění původní dlažby a obrubníků:
C47: Chodník:205,00*0,25 | E47: 51.25 | M47: Chodník:205,00*0,25
C48: Plocha mezi schodištěm a budovou ZŠ:144,00*0,30 | E48: 43.2 | M48: Plocha mezi schodištěm a budovou ZŠ:144,00*0,30
A49: 16 | B49: 59245268.R | C49: Dlažba betonová skládaná přírodní 20x10x6 cm | D49: m2 | E49: 354.348 | G49: =E49*F49 -> 0 | H49: 0.137 | I49: =E49*H49 -> 48.545676 | K49: =E49*J49 -> 0 | O49: 2 | AA49: 3 | AB49: 1 | AC49: 59245268.R | AZ49: 1 | BA49: =IF(AZ49=1,G49,0) -> 0 | BB49: =IF(AZ49=2,G49,0) -> 0 | BC49: =IF(AZ49=3,G49,0) -> 0 | BD49: =IF(AZ49=4,G49,0) -> 0 | BE49: =IF(AZ49=5,G49,0) -> 0 | CA49: 3 | CB49: 1
C50: Doplnění plochy po odstranění původní dlažby a obrubníků: | E50: 0 | M50: Doplnění plochy po odstranění původní dlažby a obrubníků:
C51: Chodník:205,00*1,02 | E51: 209.1 | M51: Chodník:205,00*1,02
C52: Plocha mezi schodištěm a budovou ZŠ:144,00*1,02 | E52: 146.88 | M52: Plocha mezi schodištěm a budovou ZŠ:144,00*1,02
C53: Odpočet plochy - zmatové prvky:-1,60*1,02 | E53: -1.632 | M53: Odpočet plochy - zmatové prvky:-1,60*1,02
A54: 17 | B54: 59245269.R | C54: Dlažba betonová skládaná přírodní 20x10x6 cm rovná hrana | D54: m2 | E54: 0.816 | G54: =E54*F54 -> 0 | H54: 0.137 | I54: =E54*H54 -> 0.111792 | K54: =E54*J54 -> 0 | O54: 2 | AA54: 3 | AB54: 1 | AC54: 59245269.R | AZ54: 1 | BA54: =IF(AZ54=1,G54,0) -> 0 | BB54: =IF(AZ54=2,G54,0) -> 0 | BC54: =IF(AZ54=3,G54,0) -> 0 | BD54: =IF(AZ54=4,G54,0) -> 0 | BE54: =IF(AZ54=5,G54,0) -> 0 | CA54: 3 | CB54: 1
C55: Doplnění plochy po odstranění původní dlažby a obrubníků: | E55: 0 | M55: Doplnění plochy po odstranění původní dlažby a obrubníků:
C56: Chodník:0,80*1,02 | E56: 0.816 | M56: Chodník:0,80*1,02
A57: 18 | B57: 59245272.R | C57: Dlažba betonová skládaná hmatová bar. 20x10x6 cm | D57: m2 | E57: 0.816 | G57: =E57*F57 -> 0 | H57: 0.137 | I57: =E57*H57 -> 0.111792 | K57: =E57*J57 -> 0 | O57: 2 | AA57: 3 | AB57: 1 | AC57: 59245272.R | AZ57: 1 | BA57: =IF(AZ57=1,G57,0) -> 0 | BB57: =IF(AZ57=2,G57,0) -> 0 | BC57: =IF(AZ57=3,G57,0) -> 0 | BD57: =IF(AZ57=4,G57,0) -> 0 | BE57: =IF(AZ57=5,G57,0) -> 0 | CA57: 3 | CB57: 1
C58: Doplnění plochy po odstranění původní dlažby a obrubníků: | E58: 0 | M58: Doplnění plochy po odstranění původní dlažby a obrubníků:
C59: Chodník:0,80*1,02 | E59: 0.816 | M59: Chodník:0,80*1,02
B60: Celkem za | C60: 5 Komunikace | G60: =SUM(G30:G59) -> 0 | I60: =SUM(I30:I59) -> 115.6525335 | K60: =SUM(K30:K59) -> 0 | O60: 4 | BA60: =SUM(BA30:BA59) -> 0 | BB60: =SUM(BB30:BB59) -> 0 | BC60: =SUM(BC30:BC59) -> 0 | BD60: =SUM(BD30:BD59) -> 0 | BE60: =SUM(BE30:BE59) -> 0
A61: Díl: | B61: 91 | C61: Doplňující práce na komunikaci | O61: 1
A62: 19 | B62: 916561111RT2 | C62: Osazení záhon.obrubníků do lože z C 12/15 s opěrou včetně obrubníku 100/5/20 cm | D62: m | E62: 57 | G62: =E62*F62 -> 0 | H62: 0.12472 | I62: =E62*H62 -> 7.10904 | J62: 0 | K62: =E62*J62 -> 0 | O62: 2 | AA62: 1 | AB62: 1 | AC62: 1 | AZ62: 1 | BA62: =IF(AZ62=1,G62,0) -> 0 | BB62: =IF(AZ62=2,G62,0) -> 0 | BC62: =IF(AZ62=3,G62,0) -> 0 | BD62: =IF(AZ62=4,G62,0) -> 0 | BE62: =IF(AZ62=5,G62,0) -> 0 | CA62: 1 | CB62: 1
C63: Stávající zahradní obruby podél zelené plochy:24,00+33,00 | E63: 57 | M63: Stávající zahradní obruby podél zelené plochy:24,00+33,00
A64: 20 | B64: 917461111R00 | C64: Osaz. stoj. obrub. kam. s opěrou, lože z C 12/15 | D64: m | E64: 59 | G64: =E64*F64 -> 0 | H64: 0.15674 | I64: =E64*H64 -> 9.24766 | J64: 0 | K64: =E64*J64 -> 0 | O64: 2 | AA64: 1 | AB64: 1 | AC64: 1 | AZ64: 1 | BA64: =IF(AZ64=1,G64,0) -> 0 | BB64: =IF(AZ64=2,G64,0) -> 0 | BC64: =IF(AZ64=3,G64,0) -> 0 | BD64: =IF(AZ64=4,G64,0) -> 0 | BE64: =IF(AZ64=5,G64,0) -> 0 | CA64: 1 | CB64: 1
C65: Stávající kamenné obruby pro opětovné použití:24,00+35,00 | E65: 59 | M65: Stávající kamenné obruby pro opětovné použití:24,00+35,00
A66: 21 | B66: 918101111R00 | C66: Lože pod obrubníky nebo obruby dlažeb z C 12/15 | D66: m3 | E66: 2.9 | G66: =E66*F66 -> 0 | H66: 2.525 | I66: =E66*H66 -> 7.3225 | J66: 0 | K66: =E66*J66 -> 0 | O66: 2 | AA66: 1 | AB66: 1 | AC66: 1 | AZ66: 1 | BA66: =IF(AZ66=1,G66,0) -> 0 | BB66: =IF(AZ66=2,G66,0) -> 0 | BC66: =IF(AZ66=3,G66,0) -> 0 | BD66: =IF(AZ66=4,G66,0) -> 0 | BE66: =IF(AZ66=5,G66,0) -> 0 | CA66: 1 | CB66: 1
C67: Nové zahradní obruby podél zelené plochy:(24,00+33,00)*0,25*0,10 | E67: 1.425 | M67: Nové zahradní obruby podél zelené plochy:(24,00+33,00)*0,25*0,10
C68: Stávající kamenné obruby pro opětovné použití:(24,00+35,00)*0,25*0,10 | E68: 1.475 | M68: Stávající kamenné obruby pro opětovné použití:(24,00+35,00)*0,25*0,10
A69: 22 | B69: 919731123R00 | C69: Zarovnání styčné plochy živičné tl. do 20 cm | D69: m | E69: 59 | G69: =E69*F69 -> 0 | H69: 0 | I69: =E69*H69 -> 0 | J69: 0 | K69: =E69*J69 -> 0 | O69: 2 | AA69: 1 | AB69: 1 | AC69: 1 | AZ69: 1 | BA69: =IF(AZ69=1,G69,0) -> 0 | BB69: =IF(AZ69=2,G69,0) -> 0 | BC69: =IF(AZ69=3,G69,0) -> 0 | BD69: =IF(AZ69=4,G69,0) -> 0 | BE69: =IF(AZ69=5,G69,0) -> 0 | CA69: 1 | CB69: 1
C70: Podél stávajících kamenných obrubníků:24,00+35,00 | E70: 59 | M70: Podél stávajících kamenných obrubníků:24,00+35,00
B71: Celkem za | C71: 91 Doplňující práce na komunikaci | G71: =SUM(G61:G70) -> 0 | I71: =SUM(I61:I70) -> 23.6792 | K71: =SUM(K61:K70) -> 0 | O71: 4 | BA71: =SUM(BA61:BA70) -> 0 | BB71: =SUM(BB61:BB70) -> 0 | BC71: =SUM(BC61:BC70) -> 0 | BD71: =SUM(BD61:BD70) -> 0 | BE71: =SUM(BE61:BE70) -> 0
A72: Díl: | B72: 97 | C72: Prorážení otvorů | O72: 1
A73: 23 | B73: 979024441R00 | C73: Očištění vybour. obrubníků všech loží a výplní | D73: m | E73: 59 | G73: =E73*F73 -> 0 | H73: 0.125 | I73: =E73*H73 -> 7.375 | J73: 0 | K73: =E73*J73 -> 0 | O73: 2 | AA73: 1 | AB73: 1 | AC73: 1 | AZ73: 1 | BA73: =IF(AZ73=1,G73,0) -> 0 | BB73: =IF(AZ73=2,G73,0) -> 0 | BC73: =IF(AZ73=3,G73,0) -> 0 | BD73: =IF(AZ73=4,G73,0) -> 0 | BE73: =IF(AZ73=5,G73,0) -> 0 | CA73: 1 | CB73: 1
C74: Stávající kamenné obruby pro opětovné použití:24,00+35,00 | E74: 59 | M74: Stávající kamenné obruby pro opětovné použití:24,00+35,00
B75: Celkem za | C75: 97 Prorážení otvorů | G75: =SUM(G72:G74) -> 0 | I75: =SUM(I72:I74) -> 7.375 | K75: =SUM(K72:K74) -> 0 | O75: 4 | BA75: =SUM(BA72:BA74) -> 0 | BB75: =SUM(BB72:BB74) -> 0 | BC75: =SUM(BC72:BC74) -> 0 | BD75: =SUM(BD72:BD74) -> 0 | BE75: =SUM(BE72:BE74) -> 0
A76: Díl: | B76: 99 | C76: Staveništní přesun hmot | O76: 1
A77: 24 | B77: 998223011R00 | C77: Přesun hmot, pozemní komunikace, kryt dlážděný | D77: t | E77: 146.7075885 | G77: =E77*F77 -> 0 | H77: 0 | I77: =E77*H77 -> 0 | K77: =E77*J77 -> 0 | O77: 2 | AA77: 7 | AB77: 1 | AC77: 2 | AZ77: 1 | BA77: =IF(AZ77=1,G77,0) -> 0 | BB77: =IF(AZ77=2,G77,0) -> 0 | BC77: =IF(AZ77=3,G77,0) -> 0 | BD77: =IF(AZ77=4,G77,0) -> 0 | BE77: =IF(AZ77=5,G77,0) -> 0 | CA77: 7 | CB77: 1
B78: Celkem za | C78: 99 Staveništní přesun hmot | G78: =SUM(G76:G77) -> 0 | I78: =SUM(I76:I77) -> 0 | K78: =SUM(K76:K77) -> 0 | O78: 4 | BA78: =SUM(BA76:BA77) -> 0 | BB78: =SUM(BB76:BB77) -> 0 | BC78: =SUM(BC76:BC77) -> 0 | BD78: =SUM(BD76:BD77) -> 0 | BE78: =SUM(BE76:BE77) -> 0

Sheet 03 338103.2 KL
A1: POLOŽKOVÝ ROZPOČET
A2: Rozpočet | C2: 3381/03.2 | D2: Chodník u bytovek a ZP pro kontejnery | F2: JKSO | G2: 822.27
A4: Objekt | F4: SKP
A5: 03 | C5: Oprava chodníku u ZŠ Žižkova | F5: Měrná jednotka | G5: m2
A6: Stavba | F6: Počet jednotek | G6: 0
A7: 3381 | C7: Turnov-Opravy místních komunikací a chodníků 2024 | F7: Náklady na m.j. | G7: =IF(G6=0,,ROUND((F30+F32)/G6,1)) -> 0
A8: Projektant | F8: Typ rozpočtu
A9: Zpracovatel projektu
A10: Objednatel | C10: Město TURNOV
A11: Dodavatel | C11: . | F11: Zakázkové číslo
A12: Rozpočtoval | F12: Počet listů
A13: ROZPOČTOVÉ NÁKLADY
A14: Základní rozpočtové náklady | D14: Ostatní rozpočtové náklady
B15: HSV celkem | C15: ='03 338103.2 Rek'!E11 -> 0 | D15: ='03 338103.2 Rek'!A16 -> Zařízení staveniště | G15: ='03 338103.2 Rek'!I16 -> 0
A16: Z | B16: PSV celkem | C16: ='03 338103.2 Rek'!F11 -> 0 | D16: ='03 338103.2 Rek'!A17 -> Kompletační činnost (IČD) | G16: ='03 338103.2 Rek'!I17 -> 0
A17: R | B17: M práce celkem | C17: ='03 338103.2 Rek'!H11 -> 0 | D17: ='03 338103.2 Rek'!A18 -> Vytýčení stavby a podz. inženýrských sítí | G17: ='03 338103.2 Rek'!I18 -> 0
A18: N | B18: M dodávky celkem | C18: ='03 338103.2 Rek'!G11 -> 0 | D18: ='03 338103.2 Rek'!A19 -> Dokumentace skutečného provedení | G18: ='03 338103.2 Rek'!I19 -> 0
A19: ZRN celkem | C19: =SUM(C15:C18) -> 0 | D19: ='03 338103.2 Rek'!A20 -> Geodetické zaměření stavby | G19: ='03 338103.2 Rek'!I20 -> 0
D20: ='03 338103.2 Rek'!A21 -> DIO | G20: ='03 338103.2 Rek'!I21 -> 0
A21: HZS | C21: ='03 338103.2 Rek'!I11 -> 0
A22: ZRN+HZS | C22: =C19+C21 -> 0
A23: ZRN+ost.náklady+HZS | C23: =C22+G23 -> 0 | D23: Ostatní náklady celkem | G23: ='03 338103.2 Rek'!H22 -> 0
A24: Vypracoval | D24: Za zhotovitele | F24: Za objednatele
A25: Jméno : | D25: Jméno : | F25: Jméno :
A26: Datum : | D26: Datum : | F26: Datum :
A28: Podpis : | D28: Podpis: | F28: Podpis:
A30: Základ pro DPH | C30: 21 | D30: % | F30: =C23-F32 -> 0
A31: DPH | C31: =C30 -> 21 | D31: % | F31: =ROUND(PRODUCT(F30,C31/100),0) -> 0
A32: Základ pro DPH | C32: 0 | D32: % | F32: 0
A33: DPH | C33: =C32 -> 0 | D33: % | F33: =ROUND(PRODUCT(F32,C33/100),0) -> 0
A34: CENA ZA OBJEKT CELKEM | F34: =ROUND(SUM(F30:F33),0) -> 0
A36: Poznámka :

Sheet 03 338103.2 Rek
A1: Stavba : | C1: 3381 Turnov-Opravy místních komunikací a chodníků 2024 | G1: Rozpočet : | H1: 3381/03.2
A2: Objekt : | C2: 03 Oprava chodníku u ZŠ Žižkova | G2: Chodník u bytovek a ZP pro kontejnery
A4: REKAPITULACE STAVEBNÍCH DÍLŮ
B6: Stavební díl | E6: HSV | F6: PSV | G6: Dodávka | H6: Montáž | I6: HZS
A7: ='03 338103.2 Pol'!B7 -> 1 | B7: ='03 338103.2 Pol'!C7 -> Zemní práce | E7: ='03 338103.2 Pol'!BA39 -> 0 | F7: ='03 338103.2 Pol'!BB39 -> 0 | G7: ='03 338103.2 Pol'!BC39 -> 0 | H7: ='03 338103.2 Pol'!BD39 -> 0 | I7: ='03 338103.2 Pol'!BE39 -> 0
A8: ='03 338103.2 Pol'!B40 -> 5 | B8: ='03 338103.2 Pol'!C40 -> Komunikace | E8: ='03 338103.2 Pol'!BA64 -> 0 | F8: ='03 338103.2 Pol'!BB64 -> 0 | G8: ='03 338103.2 Pol'!BC64 -> 0 | H8: ='03 338103.2 Pol'!BD64 -> 0 | I8: ='03 338103.2 Pol'!BE64 -> 0
A9: ='03 338103.2 Pol'!B65 -> 91 | B9: ='03 338103.2 Pol'!C65 -> Doplňující práce na komunikaci | E9: ='03 338103.2 Pol'!BA79 -> 0 | F9: ='03 338103.2 Pol'!BB79 -> 0 | G9: ='03 338103.2 Pol'!BC79 -> 0 | H9: ='03 338103.2 Pol'!BD79 -> 0 | I9: ='03 338103.2 Pol'!BE79 -> 0
A10: ='03 338103.2 Pol'!B80 -> 99 | B10: ='03 338103.2 Pol'!C80 -> Staveništní přesun hmot | E10: ='03 338103.2 Pol'!BA82 -> 0 | F10: ='03 338103.2 Pol'!BB82 -> 0 | G10: ='03 338103.2 Pol'!BC82 -> 0 | H10: ='03 338103.2 Pol'!BD82 -> 0 | I10: ='03 338103.2 Pol'!BE82 -> 0
B11: CELKEM OBJEKT | E11: =SUM(E7:E10) -> 0 | F11: =SUM(F7:F10) -> 0 | G11: =SUM(G7:G10) -> 0 | H11: =SUM(H7:H10) -> 0 | I11: =SUM(I7:I10) -> 0
A13: VEDLEJŠÍ ROZPOČTOVÉ NÁKLADY
A15: Název VRN | E15: Kč | I15: Kč
A16: Zařízení staveniště | E16: 0 | I16: =E16+F16*G16/100 -> 0 | BA16: 2
A17: Kompletační činnost (IČD) | E17: 0 | I17: 0 | BA17: 2
A18: Vytýčení stavby a podz. inženýrských sítí | E18: 0 | I18: 0 | BA18: 0
A19: Dokumentace skutečného provedení | E19: 0 | I19: 0 | BA19: 0
A20: Geodetické zaměření stavby | E20: 0 | I20: 0 | BA20: 0
A21: DIO | E21: 0 | I21: 0 | BA21: 0
B22: CELKEM VRN | H22: =SUM(I16:I21) -> 0

Sheet 03 338103.2 Pol
A1: Položkový rozpočet
A3: Stavba : | C3: 3381 Turnov-Opravy místních komunikací a chodníků 2024 | E3: Rozpočet: | F3: ='03 338103.2 Rek'!H1 -> 3381/03.2
A4: Objekt : | C4: 03 Oprava chodníku u ZŠ Žižkova | E4: ='03 338103.2 Rek'!G2 -> Chodník u bytovek a ZP pro kontejnery
A6: P.č. | B6: Číslo položky | C6: Název položky | D6: MJ | E6: množství | F6: cena / MJ | G6: celkem (Kč) | H6: Jednotková hmotnost | I6: Celková hmotnost | J6: Jednotková dem.hmot. | K6: Celková dem.hmot.
A7: Díl: | B7: 1 | C7: Zemní práce | O7: 1
A8: 1 | B8: 113106121R00 | C8: Rozebrání dlažeb z betonových dlaždic na sucho | D8: m2 | E8: 25.5 | G8: =E8*F8 -> 0 | H8: 0 | I8: =E8*H8 -> 0 | J8: -0.138 | K8: =E8*J8 -> -3.519 | O8: 2 | AA8: 1 | AB8: 1 | AC8: 1 | AZ8: 1 | BA8: =IF(AZ8=1,G8,0) -> 0 | BB8: =IF(AZ8=2,G8,0) -> 0 | BC8: =IF(AZ8=3,G8,0) -> 0 | BD8: =IF(AZ8=4,G8,0) -> 0 | BE8: =IF(AZ8=5,G8,0) -> 0 | CA8: 1 | CB8: 1
C9: Stávající dlažba - ZP:25,50 | E9: 25.5 | M9: Stávající dlažba - ZP:25,50
A10: 2 | B10: 113107620R00 | C10: Odstranění podkladu nad 50 m2,kam.drcené tl.20 cm | D10: m2 | E10: 65.8 | G10: =E10*F10 -> 0 | H10: 0 | I10: =E10*H10 -> 0 | J10: -0.44 | K10: =E10*J10 -> -28.952 | O10: 2 | AA10: 1 | AB10: 1 | AC10: 1 | AZ10: 1 | BA10: =IF(AZ10=1,G10,0) -> 0 | BB10: =IF(AZ10=2,G10,0) -> 0 | BC10: =IF(AZ10=3,G10,0) -> 0 | BD10: =IF(AZ10=4,G10,0) -> 0 | BE10: =IF(AZ10=5,G10,0) -> 0 | CA10: 1 | CB10: 1
C11: Stávajísí plochy - komunikace, chodník:65,80 | E11: 65.8 | M11: Stávajísí plochy - komunikace, chodník:65,80
A12: 3 | B12: 113108406R00 | C12: Odstranění asfaltové vrstvy pl.nad 50 m2, tl. 6 cm | D12: m2 | E12: 35 | G12: =E12*F12 -> 0 | H12: 0 | I12: =E12*H12 -> 0 | J12: -0.132 | K12: =E12*J12 -> -4.62 | O12: 2 | AA12: 1 | AB12: 1 | AC12: 1 | AZ12: 1 | BA12: =IF(AZ12=1,G12,0) -> 0 | BB12: =IF(AZ12=2,G12,0) -> 0 | BC12: =IF(AZ12=3,G12,0) -> 0 | BD12: =IF(AZ12=4,G12,0) -> 0 | BE12: =IF(AZ12=5,G12,0) -> 0 | CA12: 1 | CB12: 1
C13: Stávající asfalt - chodník:35,00 | E13: 35 | M13: Stávající asfalt - chodník:35,00
A14: 4 | B14: 113108415R00 | C14: Odstranění asfaltové vrstvy pl.nad 50 m2, tl.15 cm | D14: m2 | E14: 55.6 | G14: =E14*F14 -> 0 | H14: 0 | I14: =E14*H14 -> 0 | J14: -0.33 | K14: =E14*J14 -> -18.348 | O14: 2 | AA14: 1 | AB14: 1 | AC14: 1 | AZ14: 1 | BA14: =IF(AZ14=1,G14,0) -> 0 | BB14: =IF(AZ14=2,G14,0) -> 0 | BC14: =IF(AZ14=3,G14,0) -> 0 | BD14: =IF(AZ14=4,G14,0) -> 0 | BE14: =IF(AZ14=5,G14,0) -> 0 | CA14: 1 | CB14: 1
C15: Stávající asfalt - komunikace:55,60 | E15: 55.6 | M15: Stávající asfalt - komunikace:55,60
A16: 5 | B16: 113201111R00 | C16: Vytrhání obrubníků chodníkových a parkových | D16: m | E16: 65 | G16: =E16*F16 -> 0 | H16: 0 | I16: =E16*H16 -> 0 | J16: -0.22 | K16: =E16*J16 -> -14.3 | O16: 2 | AA16: 1 | AB16: 1 | AC16: 1 | AZ16: 1 | BA16: =IF(AZ16=1,G16,0) -> 0 | BB16: =IF(AZ16=2,G16,0) -> 0 | BC16: =IF(AZ16=3,G16,0) -> 0 | BD16: =IF(AZ16=4,G16,0) -> 0 | BE16: =IF(AZ16=5,G16,0) -> 0 | CA16: 1 | CB16: 1
C17: Stávající silníční obruby:65,00 | E17: 65 | M17: Stávající silníční obruby:65,00
A18: 6 | B18: 113204111R00 | C18: Vytrhání obrubníků zahradních | D18: m | E18: 30 | G18: =E18*F18 -> 0 | H18: 0 | I18: =E18*H18 -> 0 | J18: -0.125 | K18: =E18*J18 -> -3.75 | O18: 2 | AA18: 1 | AB18: 1 | AC18: 1 | AZ18: 1 | BA18: =IF(AZ18=1,G18,0) -> 0 | BB18: =IF(AZ18=2,G18,0) -> 0 | BC18: =IF(AZ18=3,G18,0) -> 0 | BD18: =IF(AZ18=4,G18,0) -> 0 | BE18: =IF(AZ18=5,G18,0) -> 0 | CA18: 1 | CB18: 1
C19: Stávající zahradní obruby:30,00 | E19: 30 | M19: Stávající zahradní obruby:30,00
A20: 7 | B20: 122202201R00 | C20: Odkopávky pro silnice v hor. 3 do 100 m3 | D20: m3 | E20: 18.225 | G20: =E20*F20 -> 0 | H20: 0 | I20: =E20*H20 -> 0 | J20: 0 | K20: =E20*J20 -> 0 | O20: 2 | AA20: 1 | AB20: 1 | AC20: 1 | AZ20: 1 | BA20: =IF(AZ20=1,G20,0) -> 0 | BB20: =IF(AZ20=2,G20,0) -> 0 | BC20: =IF(AZ20=3,G20,0) -> 0 | BD20: =IF(AZ20=4,G20,0) -> 0 | BE20: =IF(AZ20=5,G20,0) -> 0 | CA20: 1 | CB20: 1
C21: Odkopávky pro ZP a chodník:18,2250 | E21: 18.225 | M21: Odkopávky pro ZP a chodník:18,2250
A22: 8 | B22: 122202209R00 | C22: Příplatek za lepivost - odkop. pro silnice v hor.3 | D22: m3 | E22: 18.225 | G22: =E22*F22 -> 0 | H22: 0 | I22: =E22*H22 -> 0 | J22: 0 | K22: =E22*J22 -> 0 | O22: 2 | AA22: 1 | AB22: 1 | AC22: 1 | AZ22: 1 | BA22: =IF(AZ22=1,G22,0) -> 0 | BB22: =IF(AZ22=2,G22,0) -> 0 | BC22: =IF(AZ22=3,G22,0) -> 0 | BD22: =IF(AZ22=4,G22,0) -> 0 | BE22: =IF(AZ22=5,G22,0) -> 0 | CA22: 1 | CB22: 1
C23: Odkopávky pro ZP a chodník:18,2250 | E23: 18.225 | M23: Odkopávky pro ZP a chodník:18,2250
A24: 9 | B24: 162701105RSZ | C24: Vodorovné přemístění výkopku z hor.1-7 na skládku zhotovitele | D24: m3 | E24: 18.225 | G24: =E24*F24 -> 0 | H24: 0 | I24: =E24*H24 -> 0 | J24: 0 | K24: =E24*J24 -> 0 | O24: 2 | AA24: 1 | AB24: 1 | AC24: 1 | AZ24: 1 | BA24: =IF(AZ24=1,G24,0) -> 0 | BB24: =IF(AZ24=2,G24,0) -> 0 | BC24: =IF(AZ24=3,G24,0) -> 0 | BD24: =IF(AZ24=4,G24,0) -> 0 | BE24: =IF(AZ24=5,G24,0) -> 0 | CA24: 1 | CB24: 1
C25: Odkopávky pro ZP a chodník:18,2250 | E25: 18.225 | M25: Odkopávky pro ZP a chodník:18,2250
A26: 10 | B26: 181101102R00 | C26: Úprava pláně v zářezech v hor. 1-4, se zhutněním | D26: m2 | E26: 171.84 | G26: =E26*F26 -> 0 | H26: 0 | I26: =E26*H26 -> 0 | J26: 0 | K26: =E26*J26 -> 0 | O26: 2 | AA26: 1 | AB26: 1 | AC26: 1 | AZ26: 1 | BA26: =IF(AZ26=1,G26,0) -> 0 | BB26: =IF(AZ26=2,G26,0) -> 0 | BC26: =IF(AZ26=3,G26,0) -> 0 | BD26: =IF(AZ26=4,G26,0) -> 0 | BE26: =IF(AZ26=5,G26,0) -> 0 | CA26: 1 | CB26: 1
C27: Chodníky:72,30*1,2 | E27: 86.76 | M27: Chodníky:72,30*1,2
C28: ZP:(49,70+21,20)*1,2 | E28: 85.08 | M28: ZP:(49,70+21,20)*1,2
A29: 11 | B29: 181300012RAC | C29: Rozprostření ornice v rovině tloušťka 20 cm dovoz ornice ze vzdálenosti 5 km, osetí trávou | D29: m2 | E29: 38.5 | G29: =E29*F29 -> 0 | H29: 3e-05 | I29: =E29*H29 -> 0.001155 | J29: 0 | K29: =E29*J29 -> 0 | O29: 2 | AA29: 1 | AB29: 1 | AC29: 1 | AZ29: 1 | BA29: =IF(AZ29=1,G29,0) -> 0 | BB29: =IF(AZ29=2,G29,0) -> 0 | BC29: =IF(AZ29=3,G29,0) -> 0 | BD29: =IF(AZ29=4,G29,0) -> 0 | BE29: =IF(AZ29=5,G29,0) -> 0 | CA29: 1 | CB29: 1
C30: Včetně přesunu hmot. | L30: Včetně přesunu hmot. | O30: 3
C31: Ornice podél upravovaných chodníků a ZP:38,50 | E31: 38.5 | M31: Ornice podél upravovaných chodníků a ZP:38,50
A32: 12 | B32: 199000002R00 | C32: Poplatek za skládku horniny 1- 7 č. dle katal. odpadů 17 05 04 | D32: m3 | E32: 18.225 | G32: =E32*F32 -> 0 | H32: 0 | I32: =E32*H32 -> 0 | J32: 0 | K32: =E32*J32 -> 0 | O32: 2 | AA32: 1 | AB32: 1 | AC32: 1 | AZ32: 1 | BA32: =IF(AZ32=1,G32,0) -> 0 | BB32: =IF(AZ32=2,G32,0) -> 0 | BC32: =IF(AZ32=3,G32,0) -> 0 | BD32: =IF(AZ32=4,G32,0) -> 0 | BE32: =IF(AZ32=5,G32,0) -> 0 | CA32: 1 | CB32: 1
C33: Odkopávky pro ZP a chodník:18,2250 | E33: 18.225 | M33: Odkopávky pro ZP a chodník:18,2250
A34: 13 | B34: 979082113RSZ | C34: Vodorovná doprava suti po suchu na skládku zhotovitele | D34: t | E34: 73.489 | G34: =E34*F34 -> 0 | H34: 0 | I34: =E34*H34 -> 0 | J34: 0 | K34: =E34*J34 -> 0 | O34: 2 | AA34: 1 | AB34: 1 | AC34: 1 | AZ34: 1 | BA34: =IF(AZ34=1,G34,0) -> 0 | BB34: =IF(AZ34=2,G34,0) -> 0 | BC34: =IF(AZ34=3,G34,0) -> 0 | BD34: =IF(AZ34=4,G34,0) -> 0 | BE34: =IF(AZ34=5,G34,0) -> 0 | CA34: 1 | CB34: 1
A35: 14 | B35: 979089001R00 | C35: Poplatek za skládku stavební suti štěrky z komunikací, skupina odpadu 010408 | D35: t | E35: 28.952 | G35: =E35*F35 -> 0 | H35: 0 | I35: =E35*H35 -> 0 | J35: 0 | K35: =E35*J35 -> 0 | O35: 2 | AA35: 1 | AB35: 1 | AC35: 1 | AZ35: 1 | BA35: =IF(AZ35=1,G35,0) -> 0 | BB35: =IF(AZ35=2,G35,0) -> 0 | BC35: =IF(AZ35=3,G35,0) -> 0 | BD35: =IF(AZ35=4,G35,0) -> 0 | BE35: =IF(AZ35=5,G35,0) -> 0 | CA35: 1 | CB35: 1
A36: 15 | B36: 979990103R00 | C36: Poplatek za skládku stavební suti beton, skupina odpadu 170101 | D36: t | E36: 21.569 | G36: =E36*F36 -> 0 | H36: 0 | I36: =E36*H36 -> 0 | J36: 0 | K36: =E36*J36 -> 0 | O36: 2 | AA36: 1 | AB36: 1 | AC36: 1 | AZ36: 1 | BA36: =IF(AZ36=1,G36,0) -> 0 | BB36: =IF(AZ36=2,G36,0) -> 0 | BC36: =IF(AZ36=3,G36,0) -> 0 | BD36: =IF(AZ36=4,G36,0) -> 0 | BE36: =IF(AZ36=5,G36,0) -> 0 | CA36: 1 | CB36: 1
A37: 16 | B37: 979999995R00 | C37: Poplatek za reciklaci asfaltu, kusovost do 1600cm2 skupina 170302 | D37: t | E37: 22.968 | G37: =E37*F37 -> 0 | H37: 0 | I37: =E37*H37 -> 0 | J37: 0 | K37: =E37*J37 -> 0 | O37: 2 | AA37: 1 | AB37: 1 | AC37: 1 | AZ37: 1 | BA37: =IF(AZ37=1,G37,0) -> 0 | BB37: =IF(AZ37=2,G37,0) -> 0 | BC37: =IF(AZ37=3,G37,0) -> 0 | BD37: =IF(AZ37=4,G37,0) -> 0 | BE37: =IF(AZ37=5,G37,0) -> 0 | CA37: 1 | CB37: 1
C38: Položka je určena pro suť o velikosti kusu do 30x30 cm (technologický materiál určený k recyklaci). | L38: Položka je určena pro suť o velikosti kusu do 30x30 cm (technologický materiál určený k recyklaci). | O38: 3
B39: Celkem za | C39: 1 Zemní práce | G39: =SUM(G7:G38) -> 0 | I39: =SUM(I7:I38) -> 0.001155 | K39: =SUM(K7:K38) -> -73.489 | O39: 4 | BA39: =SUM(BA7:BA38) -> 0 | BB39: =SUM(BB7:BB38) -> 0 | BC39: =SUM(BC7:BC38) -> 0 | BD39: =SUM(BD7:BD38) -> 0 | BE39: =SUM(BE7:BE38) -> 0
A40: Díl: | B40: 5 | C40: Komunikace | O40: 1
A41: 17 | B41: 564851111R00 | C41: Podklad ze štěrkodrti po zhutnění tloušťky 15 cm | D41: m2 | E41: 79.53 | G41: =E41*F41 -> 0 | H41: 0.378 | I41: =E41*H41 -> 30.06234 | J41: 0 | K41: =E41*J41 -> 0 | O41: 2 | AA41: 1 | AB41: 1 | AC41: 1 | AZ41: 1 | BA41: =IF(AZ41=1,G41,0) -> 0 | BB41: =IF(AZ41=2,G41,0) -> 0 | BC41: =IF(AZ41=3,G41,0) -> 0 | BD41: =IF(AZ41=4,G41,0) -> 0 | BE41: =IF(AZ41=5,G41,0) -> 0 | CA41: 1 | CB41: 1
C42: Chodník:72,30*1,1 | E42: 79.53 | M42: Chodník:72,30*1,1
A43: 18 | B43: 564871111R00 | C43: Podklad ze štěrkodrti po zhutnění tloušťky 25 cm | D43: m2 | E43: 77.99 | G43: =E43*F43 -> 0 | H43: 0.55125 | I43: =E43*H43 -> 42.9919875 | J43: 0 | K43: =E43*J43 -> 0 | O43: 2 | AA43: 1 | AB43: 1 | AC43: 1 | AZ43: 1 | BA43: =IF(AZ43=1,G43,0) -> 0 | BB43: =IF(AZ43=2,G43,0) -> 0 | BC43: =IF(AZ43=3,G43,0) -> 0 | BD43: =IF(AZ43=4,G43,0) -> 0 | BE43: =IF(AZ43=5,G43,0) -> 0 | CA43: 1 | CB43: 1
C44: ZP:(49,70+21,20)*1,1 | E44: 77.99 | M44: ZP:(49,70+21,20)*1,1
A45: 19 | B45: 566904111RRX | C45: Vyspravení podkladu po překopech ACP 16+ Ručně | D45: t | E45: 5.1975 | G45: =E45*F45 -> 0 | H45: 1 | I45: =E45*H45 -> 5.1975 | J45: 0 | K45: =E45*J45 -> 0 | O45: 2 | AA45: 1 | AB45: 1 | AC45: 1 | AZ45: 1 | BA45: =IF(AZ45=1,G45,0) -> 0 | BB45: =IF(AZ45=2,G45,0) -> 0 | BC45: =IF(AZ45=3,G45,0) -> 0 | BD45: =IF(AZ45=4,G45,0) -> 0 | BE45: =IF(AZ45=5,G45,0) -> 0 | CA45: 1 | CB45: 1
C46: 63,00*0,30*0,10*2,5*1,1 | E46: 5.1975 | M46: 63,00*0,30*0,10*2,5*1,1
A47: 20 | B47: 572952111RRX | C47: Vyspravení krytu asf.betonem tl.do 5 cm ACO11+ Ručně | D47: m2 | E47: 20.79 | G47: =E47*F47 -> 0 | H47: 0.10255 | I47: =E47*H47 -> 2.1320145 | J47: 0 | K47: =E47*J47 -> 0 | O47: 2 | AA47: 1 | AB47: 1 | AC47: 1 | AZ47: 1 | BA47: =IF(AZ47=1,G47,0) -> 0 | BB47: =IF(AZ47=2,G47,0) -> 0 | BC47: =IF(AZ47=3,G47,0) -> 0 | BD47: =IF(AZ47=4,G47,0) -> 0 | BE47: =IF(AZ47=5,G47,0) -> 0 | CA47: 1 | CB47: 1
C48: 63,00*0,30*1,1 | E48: 20.79 | M48: 63,00*0,30*1,1
A49: 21 | B49: 573231125R00 | C49: Postřik spojovací z KAE množství zbytkového asfaltu 0,5 kg/m2 | D49: m2 | E49: 5.1975 | G49: =E49*F49 -> 0 | H49: 0.0005 | I49: =E49*H49 -> 0.00259875 | J49: 0 | K49: =E49*J49 -> 0 | O49: 2 | AA49: 1 | AB49: 1 | AC49: 1 | AZ49: 1 | BA49: =IF(AZ49=1,G49,0) -> 0 | BB49: =IF(AZ49=2,G49,0) -> 0 | BC49: =IF(AZ49=3,G49,0) -> 0 | BD49: =IF(AZ49=4,G49,0) -> 0 | BE49: =IF(AZ49=5,G49,0) -> 0 | CA49: 1 | CB49: 1
C50: 63,00*0,30*0,10*2,5*1,1 | E50: 5.1975 | M50: 63,00*0,30*0,10*2,5*1,1
A51: 22 | B51: 596215021R00 | C51: Kladení zámkové dlažby tl. 6 cm do drtě tl. 4 cm | D51: m2 | E51: 143.2 | G51: =E51*F51 -> 0 | H51: 0.0739 | I51: =E51*H51 -> 10.58248 | J51: 0 | K51: =E51*J51 -> 0 | O51: 2 | AA51: 1 | AB51: 1 | AC51: 1 | AZ51: 1 | BA51: =IF(AZ51=1,G51,0) -> 0 | BB51: =IF(AZ51=2,G51,0) -> 0 | BC51: =IF(AZ51=3,G51,0) -> 0 | BD51: =IF(AZ51=4,G51,0) -> 0 | BE51: =IF(AZ51=5,G51,0) -> 0 | CA51: 1 | CB51: 1
C52: ZP:49,70+21,20 | E52: 70.9 | M52: ZP:49,70+21,20
C53: Chodník:72,30 | E53: 72.3 | M53: Chodník:72,30
A54: 23 | B54: 596291111R00 | C54: Řezání zámkové dlažby tl. 60 mm | D54: m | E54: 108 | G54: =E54*F54 -> 0 | H54: 0.00033 | I54: =E54*H54 -> 0.03564 | J54: 0 | K54: =E54*J54 -> 0 | O54: 2 | AA54: 1 | AB54: 1 | AC54: 1 | AZ54: 1 | BA54: =IF(AZ54=1,G54,0) -> 0 | BB54: =IF(AZ54=2,G54,0) -> 0 | BC54: =IF(AZ54=3,G54,0) -> 0 | BD54: =IF(AZ54=4,G54,0) -> 0 | BE54: =IF(AZ54=5,G54,0) -> 0 | CA54: 1 | CB54: 1
C55: ZP:72,00 | E55: 72 | M55: ZP:72,00
C56: Chodník:36,00 | E56: 36 | M56: Chodník:36,00
A57: 24 | B57: 59245268.R | C57: Dlažba betonová skládaná přírodní 20x10x6 cm | D57: m2 | E57: 139.536 | G57: =E57*F57 -> 0 | H57: 0.137 | I57: =E57*H57 -> 19.116432 | K57: =E57*J57 -> 0 | O57: 2 | AA57: 3 | AB57: 1 | AC57: 59245268.R | AZ57: 1 | BA57: =IF(AZ57=1,G57,0) -> 0 | BB57: =IF(AZ57=2,G57,0) -> 0 | BC57: =IF(AZ57=3,G57,0) -> 0 | BD57: =IF(AZ57=4,G57,0) -> 0 | BE57: =IF(AZ57=5,G57,0) -> 0 | CA57: 3 | CB57: 1
C58: ZP:(49,70+21,20)*1,02 | E58: 72.318 | M58: ZP:(49,70+21,20)*1,02
C59: Chodník:(72,30-6,40)*1,02 | E59: 67.218 | M59: Chodník:(72,30-6,40)*1,02
A60: 25 | B60: 59245269.R | C60: Dlažba betonová skládaná přírodní 20x10x6 cm rovná hrana | D60: m2 | E60: 3.36 | G60: =E60*F60 -> 0 | H60: 0.137 | I60: =E60*H60 -> 0.46032 | K60: =E60*J60 -> 0 | O60: 2 | AA60: 3 | AB60: 1 | AC60: 59245269.R | AZ60: 1 | BA60: =IF(AZ60=1,G60,0) -> 0 | BB60: =IF(AZ60=2,G60,0) -> 0 | BC60: =IF(AZ60=3,G60,0) -> 0 | BD60: =IF(AZ60=4,G60,0) -> 0 | BE60: =IF(AZ60=5,G60,0) -> 0 | CA60: 3 | CB60: 1
C61: 3,20*1,05 | E61: 3.36 | M61: 3,20*1,05
A62: 26 | B62: 59245272.R | C62: Dlažba betonová skládaná hmatová bar. 20x10x6 cm | D62: m2 | E62: 3.36 | G62: =E62*F62 -> 0 | H62: 0.137 | I62: =E62*H62 -> 0.46032 | K62: =E62*J62 -> 0 | O62: 2 | AA62: 3 | AB62: 1 | AC62: 59245272.R | AZ62: 1 | BA62: =IF(AZ62=1,G62,0) -> 0 | BB62: =IF(AZ62=2,G62,0) -> 0 | BC62: =IF(AZ62=3,G62,0) -> 0 | BD62: =IF(AZ62=4,G62,0) -> 0 | BE62: =IF(AZ62=5,G62,0) -> 0 | CA62: 3 | CB62: 1
C63: 3,20*1,05 | E63: 3.36 | M63: 3,20*1,05
B64: Celkem za | C64: 5 Komunikace | G64: =SUM(G40:G63) -> 0 | I64: =SUM(I40:I63) -> 111.0416328 | K64: =SUM(K40:K63) -> 0 | O64: 4 | BA64: =SUM(BA40:BA63) -> 0 | BB64: =SUM(BB40:BB63) -> 0 | BC64: =SUM(BC40:BC63) -> 0 | BD64: =SUM(BD40:BD63) -> 0 | BE64: =SUM(BE40:BE63) -> 0
A65: Díl: | B65: 91 | C65: Doplňující práce na komunikaci | O65: 1
A66: 27 | B66: 916561111RT2 | C66: Osazení záhon.obrubníků do lože z C 12/15 s opěrou včetně obrubníku 100/5/20 cm | D66: m | E66: 40 | G66: =E66*F66 -> 0 | H66: 0.12472 | I66: =E66*H66 -> 4.9888 | J66: 0 | K66: =E66*J66 -> 0 | O66: 2 | AA66: 1 | AB66: 1 | AC66: 1 | AZ66: 1 | BA66: =IF(AZ66=1,G66,0) -> 0 | BB66: =IF(AZ66=2,G66,0) -> 0 | BC66: =IF(AZ66=3,G66,0) -> 0 | BD66: =IF(AZ66=4,G66,0) -> 0 | BE66: =IF(AZ66=5,G66,0) -> 0 | CA66: 1 | CB66: 1
C67: 40,00 | E67: 40 | M67: 40,00
A68: 28 | B68: 917732111RT7 | C68: Osazení ležat. obrub. bet. bez opěr,lože z C 25/30 včetně obrubníku 1000x150x250 cm | D68: m | E68: 35 | G68: =E68*F68 -> 0 | H68: 0.21181 | I68: =E68*H68 -> 7.41335 | J68: 0 | K68: =E68*J68 -> 0 | O68: 2 | AA68: 1 | AB68: 1 | AC68: 1 | AZ68: 1 | BA68: =IF(AZ68=1,G68,0) -> 0 | BB68: =IF(AZ68=2,G68,0) -> 0 | BC68: =IF(AZ68=3,G68,0) -> 0 | BD68: =IF(AZ68=4,G68,0) -> 0 | BE68: =IF(AZ68=5,G68,0) -> 0 | CA68: 1 | CB68: 1
C69: 35,00 | E69: 35 | M69: 35,00
A70: 29 | B70: 917732114RT7 | C70: Osazení stojat. obrub.bet. s opěrou,lože z C 25/30 včetně obrubníku 1000x150x250 mm | D70: m | E70: 33.5 | G70: =E70*F70 -> 0 | H70: 0.26981 | I70: =E70*H70 -> 9.038635 | J70: 0 | K70: =E70*J70 -> 0 | O70: 2 | AA70: 1 | AB70: 0 | AC70: 0 | AZ70: 1 | BA70: =IF(AZ70=1,G70,0) -> 0 | BB70: =IF(AZ70=2,G70,0) -> 0 | BC70: =IF(AZ70=3,G70,0) -> 0 | BD70: =IF(AZ70=4,G70,0) -> 0 | BE70: =IF(AZ70=5,G70,0) -> 0 | CA70: 1 | CB70: 0
A71: 30 | B71: 918101111R00 | C71: Lože pod obrubníky nebo obruby dlažeb z C 12/15 | D71: m3 | E71: 2.6875 | G71: =E71*F71 -> 0 | H71: 2.525 | I71: =E71*H71 -> 6.7859375 | J71: 0 | K71: =E71*J71 -> 0 | O71: 2 | AA71: 1 | AB71: 1 | AC71: 1 | AZ71: 1 | BA71: =IF(AZ71=1,G71,0) -> 0 | BB71: =IF(AZ71=2,G71,0) -> 0 | BC71: =IF(AZ71=3,G71,0) -> 0 | BD71: =IF(AZ71=4,G71,0) -> 0 | BE71: =IF(AZ71=5,G71,0) -> 0 | CA71: 1 | CB71: 1
C72: Záhonový obrubník:40,00*0,20*0,10 | E72: 0.8 | M72: Záhonový obrubník:40,00*0,20*0,10
C73: Silniční obrubník - ležatý:35,00*0,30*0,10 | E73: 1.05 | M73: Silniční obrubník - ležatý:35,00*0,30*0,10
C74: Silniční obrubník stojatý:33,50*0,25*0,10 | E74: 0.8375 | M74: Silniční obrubník stojatý:33,50*0,25*0,10
A75: 31 | B75: 919731123R00 | C75: Zarovnání styčné plochy živičné tl. do 20 cm | D75: m | E75: 64.2 | G75: =E75*F75 -> 0 | H75: 0 | I75: =E75*H75 -> 0 | J75: 0 | K75: =E75*J75 -> 0 | O75: 2 | AA75: 1 | AB75: 1 | AC75: 1 | AZ75: 1 | BA75: =IF(AZ75=1,G75,0) -> 0 | BB75: =IF(AZ75=2,G75,0) -> 0 | BC75: =IF(AZ75=3,G75,0) -> 0 | BD75: =IF(AZ75=4,G75,0) -> 0 | BE75: =IF(AZ75=5,G75,0) -> 0 | CA75: 1 | CB75: 1
C76: 63,00+0,30*4 | E76: 64.2 | M76: 63,00+0,30*4
A77: 32 | B77: 919735112R00 | C77: Řezání stávajícího živičného krytu tl. 5 - 10 cm | D77: m | E77: 64.2 | G77: =E77*F77 -> 0 | H77: 0 | I77: =E77*H77 -> 0 | J77: 0 | K77: =E77*J77 -> 0 | O77: 2 | AA77: 1 | AB77: 1 | AC77: 1 | AZ77: 1 | BA77: =IF(AZ77=1,G77,0) -> 0 | BB77: =IF(AZ77=2,G77,0) -> 0 | BC77: =IF(AZ77=3,G77,0) -> 0 | BD77: =IF(AZ77=4,G77,0) -> 0 | BE77: =IF(AZ77=5,G77,0) -> 0 | CA77: 1 | CB77: 1
C78: 63,00+0,30*4 | E78: 64.2 | M78: 63,00+0,30*4
B79: Celkem za | C79: 91 Doplňující práce na komunikaci | G79: =SUM(G65:G78) -> 0 | I79: =SUM(I65:I78) -> 28.2267225 | K79: =SUM(K65:K78) -> 0 | O79: 4 | BA79: =SUM(BA65:BA78) -> 0 | BB79: =SUM(BB65:BB78) -> 0 | BC79: =SUM(BC65:BC78) -> 0 | BD79: =SUM(BD65:BD78) -> 0 | BE79: =SUM(BE65:BE78) -> 0
A80: Díl: | B80: 99 | C80: Staveništní přesun hmot | O80: 1
A81: 33 | B81: 998223011R00 | C81: Přesun hmot, pozemní komunikace, kryt dlážděný | D81: t | E81: 139.2695102 | G81: =E81*F81 -> 0 | H81: 0 | I81: =E81*H81 -> 0 | K81: =E81*J81 -> 0 | O81: 2 | AA81: 7 | AB81: 1 | AC81: 2 | AZ81: 1 | BA81: =IF(AZ81=1,G81,0) -> 0 | BB81: =IF(AZ81=2,G81,0) -> 0 | BC81: =IF(AZ81=3,G81,0) -> 0 | BD81: =IF(AZ81=4,G81,0) -> 0 | BE81: =IF(AZ81=5,G81,0) -> 0 | CA81: 7 | CB81: 1
B82: Celkem za | C82: 99 Staveništní přesun hmot | G82: =SUM(G80:G81) -> 0 | I82: =SUM(I80:I81) -> 0 | K82: =SUM(K80:K81) -> 0 | O82: 4 | BA82: =SUM(BA80:BA81) -> 0 | BB82: =SUM(BB80:BB81) -> 0 | BC82: =SUM(BC80:BC81) -> 0 | BD82: =SUM(BD80:BD81) -> 0 | BE82: =SUM(BE80:BE81) -> 0
